bitfinex-derivatives/quotes_ETHF0:USTF0_20260208
["timestamp","ask_amount","ask_price","bid_price","bid_amount"]
[1770546150511,8.59086644,2095.0,2090.9,1.10107]
[1770546150512,0.239,2094.1,2092.3,8.52011467]
[1770546150713,8.59086644,2094.0,2092.3,8.52011467]
[1770546151528,8.59086644,2093.6,2092.3,8.52011467]
[1770546151721,8.59466631,2093.6,2092.3,8.52011467]
[1770546152223,8.59086644,2093.3,2092.0,8.52011467]
[1770546153315,0.23908,2093.4,2090.2,8.52011467]
[1770546153316,8.59086644,2092.3,2090.2,8.52011467]
[1770546153519,8.59086644,2092.5,2090.2,8.75955467]
[1770546153715,17.62828549,2092.7,2090.2,8.75955467]
[1770546153716,2.49528549,2092.2,2090.2,8.75955467]
[1770546153913,8.59086644,2092.1,2090.2,8.75955467]
[1770546154113,8.59513737,2092.1,2090.2,8.75955467]
[1770546154525,8.59513737,2092.1,2090.2,8.52011467]
[1770546155324,8.59513737,2092.1,2089.9,8.52011467]
[1770546155325,8.59086644,2091.7,2089.9,8.52011467]
[1770546155639,8.59086644,2091.6,2089.9,8.52011467]
[1770546155828,8.59086644,2091.6,2089.4,10.54533628]
[1770546156131,8.59086644,2091.6,2087.5,1.10287]
[1770546156132,10.67674736,2090.5,2088.9,10.54533628]
[1770546156314,10.67674736,2090.5,2087.9,2.49528549]
[1770546156315,10.67674736,2090.2,2088.7,10.54533628]
[1770546156517,0.00530172,2090.5,2089.3,10.54533628]
[1770546156518,10.68204908,2090.5,2089.3,10.54533628]
[1770546156714,0.00530172,2090.5,2089.3,10.54980044]
[1770546157120,0.00530172,2090.5,2089.3,10.78934044]
[1770546157828,0.00530172,2090.5,2089.3,10.54980044]
[1770546158124,0.23927,2091.7,2089.3,10.54980044]
[1770546158125,10.67674736,2091.1,2089.5,10.54533628]
[1770546158324,10.67674736,2091.4,2089.8,10.54533628]
[1770546158723,2.49528549,2092.1,2090.1,10.54533628]
[1770546158724,10.67674736,2092.0,2090.1,10.54533628]
[1770546159034,10.68166728,2092.0,2090.1,10.54533628]
[1770546160123,10.92090728,2092.0,2090.1,10.54533628]
[1770546160428,10.67674736,2091.8,2090.1,10.54533628]
[1770546161626,0.00491992,2092.0,2090.3,10.54533628]
[1770546161926,0.00491992,2092.0,2089.3,0.00446416]
[1770546161927,10.67674736,2090.5,2089.3,0.00446416]
[1770546162129,10.68089473,2090.5,2089.3,10.54980044]
[1770546162320,10.68089473,2090.5,2089.3,0.00446416]
[1770546162629,10.68089473,2090.5,2089.4,10.54533628]
[1770546163231,10.68089473,2090.5,2089.3,0.00446416]
[1770546164726,2.49528549,2090.4,2088.7,0.23961]
[1770546164923,10.68089473,2090.5,2088.7,0.23961]
[1770546164924,10.67674736,2090.3,2088.7,3.58647209]
[1770546165119,10.67674736,2090.3,2088.9,3.34686209]
[1770546165727,10.67674736,2090.3,2088.9,3.35265998]
[1770546166233,0.00414737,2090.5,2089.4,3.87479647]
[1770546166424,0.00414737,2090.5,2089.0,8.71580748]
[1770546166425,10.67674736,2091.8,2090.2,3.9466709]
[1770546167131,10.67674736,2091.1,2089.2,3.87308509]
[1770546167426,10.6828388,2091.1,2089.4,3.87308509]
[1770546167627,10.6828388,2091.1,2089.4,4.11261509]
[1770546167832,10.6828388,2091.1,2089.6,3.87473229]
[1770546169133,10.67674736,2090.9,2089.6,3.87473229]
[1770546171329,10.67674736,2090.7,2089.0,3.96688311]
[1770546171532,10.67674736,2090.7,2089.2,3.96688311]
[1770546171928,10.91612736,2090.7,2089.2,3.96688311]
[1770546172145,10.67674736,2089.7,2088.3,4.02387889]
[1770546173237,10.67674736,2089.7,2088.3,4.02921471]
[1770546174136,10.67674736,2089.5,2088.3,4.02921471]
[1770546174441,10.68053402,2089.5,2088.3,0.00533582]
[1770546175035,11.14599096,2088.8,2087.0,0.2398]
[1770546175338,11.14599096,2088.8,2087.1,0.05363203]
[1770546176129,11.14599096,2088.8,2086.8,0.02761523]
[1770546176130,11.14599096,2088.8,2087.4,0.10717561]
[1770546176534,11.38560096,2088.8,2087.4,0.10717561]
[1770546176930,11.11074332,2088.4,2086.9,0.51706089]
[1770546177130,0.23966,2088.3,2086.9,0.51706089]
[1770546177328,2.49528549,2088.9,2086.8,0.02761523]
[1770546177329,11.35041332,2088.2,2086.8,0.02761523]
[1770546178033,11.35041332,2088.2,2086.8,0.60704794]
[1770546178235,11.11074332,2088.2,2086.8,0.60704794]
[1770546178635,11.11074332,2088.2,2086.8,0.84687794]
[1770546178838,10.87342283,2088.5,2086.9,1.08904423]
[1770546179145,10.87720949,2089.5,2087.9,0.2397]
[1770546179338,10.87720949,2089.5,2088.1,1.08904423]
[1770546179534,0.00378666,2089.5,2088.1,1.08904423]
[1770546179735,0.00378666,2089.5,2088.3,1.09189949]
[1770546179933,10.8719952,2090.1,2088.3,1.09189949]
[1770546180237,10.87388853,2090.8,2089.3,1.37514579]
[1770546180438,7.05353199,2092.4,2090.4,1.05561356]
[1770546180439,10.87388853,2092.0,2090.4,1.05561356]
[1770546180838,10.87986565,2092.0,2090.4,1.05940022]
[1770546181035,10.91388464,2091.6,2090.4,0.00378666]
[1770546181544,10.91194148,2091.0,2090.4,0.00013546]
[1770546181742,10.91194148,2091.0,2089.7,1.12948962]
[1770546181942,10.91194148,2091.0,2089.3,1.19818671]
[1770546182443,13.40722697,2091.0,2089.3,1.19818671]
[1770546182941,10.91194148,2091.0,2089.3,1.19818671]
[1770546183840,2.79118732,2091.6,2089.2,7.527]
[1770546183841,11.00792273,2090.7,2089.2,7.527]
[1770546184242,11.00792273,2090.7,2088.9,1.07417126]
[1770546186846,11.00792273,2090.7,2089.1,1.47662624]
[1770546187345,0.23938,2090.8,2088.8,6.23102128]
[1770546187346,11.54429291,2090.2,2088.8,7.70764752]
[1770546187547,11.55031969,2090.2,2088.9,1.47662624]
[1770546188539,11.55031969,2090.2,2088.5,1.28653962]
[1770546188745,11.54429291,2090.0,2088.5,1.28653962]
[1770546189145,11.54429291,2090.0,2088.5,1.52616962]
[1770546189350,11.54429291,2090.0,2088.7,1.28653962]
[1770546189546,11.54429291,2090.0,2088.7,1.52614962]
[1770546189751,11.54429291,2090.0,2088.9,1.28653962]
[1770546191448,11.54429291,2090.0,2089.1,1.31571478]
[1770546191955,11.54429291,2090.0,2088.8,1.55531478]
[1770546192448,11.54429291,2090.0,2088.5,1.34486912]
[1770546194953,11.54429291,2090.0,2088.7,1.23615284]
[1770546196055,11.54429291,2090.0,2088.6,0.23961]
[1770546196257,11.54429291,2090.0,2088.6,1.47576284]
[1770546197053,11.54429291,2090.0,2088.8,1.17060401]
[1770546198450,11.54429291,2090.0,2089.0,1.17060401]
[1770546198954,11.54429291,2090.0,2088.6,10.33966736]
[1770546198955,11.78375291,2090.0,2088.6,37.06204752]
[1770546199250,11.10928178,2089.8,2088.2,30.952]
[1770546199450,0.00602678,2090.2,2088.1,0.23968]
[1770546199451,11.10928178,2089.6,2088.1,0.23968]
[1770546199873,11.10928178,2089.6,2087.3,1.47547176]
[1770546199874,11.10928178,2089.3,2087.3,1.47547176]
[1770546200054,11.10928178,2089.0,2087.4,0.23976]
[1770546200252,11.10928178,2089.0,2087.7,1.23570176]
[1770546200658,11.10928178,2089.0,2087.4,1.109748]
[1770546201056,7.05955877,2090.2,2087.4,1.109748]
[1770546201057,10.8095976,2089.6,2088.2,11.04094762]
[1770546201266,2.7972141,2090.2,2087.9,11.04094762]
[1770546201267,10.8095976,2089.4,2087.9,11.04094762]
[1770546201853,11.0491376,2089.4,2087.7,27.419]
[1770546202053,11.0491376,2089.4,2087.8,11.04094762]
[1770546202263,10.8095976,2089.4,2087.8,11.28065762]
[1770546203060,10.8095976,2089.4,2088.0,11.04094762]
[1770546203564,0.23966,2088.3,2087.0,11.04094762]
[1770546203864,0.23966,2088.3,2086.8,0.02761523]
[1770546203865,11.0492776,2088.2,2086.8,0.02761523]
[1770546204056,10.8095976,2088.2,2086.8,11.06856285]
[1770546204663,10.8095976,2088.2,2087.0,11.04094762]
[1770546205456,0.00559771,2088.3,2086.9,11.28075762]
[1770546205759,0.00559771,2088.3,2087.2,11.04094762]
[1770546205760,10.81519531,2088.3,2087.2,11.04094762]
[1770546207555,10.81519531,2088.3,2086.0,11.04094762]
[1770546207556,1.10288,2087.5,2086.0,11.04094762]
[1770546207761,3.69086951,2085.7,2083.8,11.04094762]
[1770546207953,3.69086951,2085.7,2084.3,11.04094762]
[1770546207954,3.69086951,2085.5,2084.3,11.04094762]
[1770546208356,3.69086951,2085.5,2084.3,17.73286896]
[1770546208563,3.69086951,2085.5,2084.2,11.04094762]
[1770546208761,3.69086951,2085.5,2083.8,11.04094762]
[1770546209261,3.69086951,2085.5,2084.0,11.04094762]
[1770546209659,0.00470456,2085.7,2083.4,0.31521607]
[1770546209660,3.03229327,2085.0,2083.4,0.00562241]
[1770546209867,3.03229327,2084.8,2083.4,28.77943899]
[1770546210354,3.03229327,2084.8,2083.5,11.04094762]
[1770546210756,3.03229327,2084.8,2083.7,11.04094762]
[1770546211166,3.03229327,2084.8,2083.8,17.73286896]
[1770546211467,3.03229327,2084.8,2083.4,11.04657003]
[1770546211468,3.03229327,2084.8,2083.6,11.04094762]
[1770546211959,2.38243041,2085.3,2083.8,11.04094762]
[1770546212354,2.38243041,2085.3,2083.9,28.77381658]
[1770546212552,2.38243041,2085.3,2084.0,11.04094762]
[1770546212958,2.79022638,2085.6,2084.2,11.04094762]
[1770546213364,2.79022638,2085.6,2084.4,11.04094762]
[1770546213758,0.00470456,2085.7,2084.6,11.04094762]
[1770546214167,2.79022638,2086.4,2084.8,11.04094762]
[1770546214667,2.87357231,2087.4,2085.4,11.04094762]
[1770546214862,2.87357231,2087.4,2085.6,11.04094762]
[1770546215362,0.23973,2087.7,2085.8,11.04094762]
[1770546215363,2.87357231,2087.7,2085.8,11.04094762]
[1770546215662,0.23969,2088.1,2085.9,6.16298132]
[1770546215859,2.87339088,2088.0,2086.0,11.1666859]
[1770546216256,2.87339088,2088.0,2086.2,10.9267659]
[1770546216472,0.00547039,2088.1,2086.4,10.9267659]
[1770546216655,0.00547039,2088.1,2086.6,10.9267659]
[1770546216858,0.00547039,2088.1,2086.8,10.9267659]
[1770546217254,0.94215077,2088.6,2086.7,37.1274185]
[1770546217255,0.94215077,2088.6,2087.0,10.9267659]
[1770546217454,3.07594618,2088.8,2087.0,10.9267659]
[1770546217662,2.83634618,2089.1,2087.2,10.9267659]
[1770546217867,2.83634618,2089.1,2087.1,23.90827029]
[1770546217868,2.83634618,2089.5,2087.4,11.1665259]
[1770546218162,3.07582618,2089.9,2087.6,10.9267659]
[1770546218361,2.83634618,2089.7,2087.6,10.93195699]
[1770546218568,2.83634618,2089.7,2087.8,10.9267659]
[1770546218872,0.00586489,2089.9,2088.0,10.9267659]
[1770546219273,2.64858268,2089.9,2088.2,10.9267659]
[1770546219670,2.64858268,2089.9,2088.4,10.9267659]
[1770546220163,2.64858268,2089.9,2088.6,10.9267659]
[1770546220369,2.64858268,2089.9,2088.7,28.65963486]
[1770546220670,2.64858268,2089.9,2088.7,10.9267659]
[1770546220864,2.64858268,2089.9,2088.8,28.65963486]
[1770546221065,2.64858268,2089.9,2088.8,10.9267659]
[1770546221367,2.64858268,2089.9,2088.9,17.73286896]
[1770546221571,2.64858268,2089.9,2088.6,10.9267659]
[1770546222164,2.64858268,2089.9,2088.7,28.65963486]
[1770546222365,2.64858268,2089.9,2088.7,10.9267659]
[1770546222566,2.64858268,2089.9,2088.8,28.65963486]
[1770546222762,2.64858268,2089.9,2088.8,10.9267659]
[1770546222965,2.64858268,2089.9,2088.9,17.73286896]
[1770546223167,0.00586489,2089.9,2089.0,10.9267659]
[1770546224060,2.73096674,2089.9,2089.1,17.73286896]
[1770546224266,2.73096674,2089.9,2089.1,17.73884098]
[1770546224465,1.10171,2089.7,2087.7,11.72704195]
[1770546224666,5.27817885,2089.4,2087.1,11.72704195]
[1770546224865,7.33423117,2089.3,2087.1,11.72704195]
[1770546225073,7.33423117,2089.2,2087.1,11.72704195]
[1770546225271,4.57093332,2089.1,2087.3,11.72704195]
[1770546225474,5.27817885,2089.4,2087.3,11.73130213]
[1770546225671,4.57357676,2089.3,2087.4,26.13765318]
[1770546225874,4.57357676,2089.2,2087.4,26.13765318]
[1770546226073,0.23963,2088.6,2087.4,14.41061123]
[1770546226672,0.23963,2088.6,2087.4,26.13765318]
[1770546226976,0.23963,2088.6,2087.5,11.72704195]
[1770546227471,0.23963,2088.6,2087.6,26.13765318]
[1770546227672,0.23963,2088.6,2087.6,11.72704195]
[1770546228076,0.23963,2088.6,2087.7,26.13765318]
[1770546228270,0.23963,2088.6,2087.8,11.72704195]
[1770546228776,0.23965,2088.5,2087.5,11.72704195]
[1770546228976,0.23965,2088.5,2087.6,13.91664123]
[1770546229176,0.23965,2088.4,2087.6,13.91664123]
[1770546229371,0.24539704,2088.4,2087.3,11.73130213]
[1770546229678,0.24539704,2088.4,2087.5,11.72704195]
[1770546230078,0.24539704,2088.4,2087.7,11.72704195]
[1770546230280,0.66013096,2088.2,2087.4,13.91664123]
[1770546230478,0.23968,2088.2,2087.4,25.41402941]
[1770546230676,0.23968,2088.2,2087.5,11.49738818]
[1770546231077,0.23968,2088.2,2087.6,13.91664123]
[1770546231573,0.00574704,2088.4,2087.6,25.41402941]
[1770546231777,0.00574704,2088.4,2087.7,11.49738818]
[1770546232271,0.00574704,2088.4,2087.8,13.91664123]
[1770546232672,0.00574704,2088.4,2087.8,25.40963613]
[1770546233580,0.00574704,2088.4,2087.9,11.4929949]
[1770546233776,0.23963,2088.6,2087.9,11.4929949]
[1770546233979,0.23963,2088.6,2088.0,25.40963613]
[1770546234177,0.46809409,2089.1,2088.1,11.4929949]
[1770546234583,0.46809409,2088.9,2087.7,11.54966498]
[1770546234786,0.47282881,2088.9,2087.7,11.54966498]
[1770546234985,0.23962,2088.7,2087.8,13.41379123]
[1770546235282,0.23962,2088.7,2087.9,11.54966498]
[1770546235686,0.23962,2088.7,2088.0,13.41379123]
[1770546236185,0.23962,2088.7,2088.0,24.96345621]
[1770546236581,0.23962,2088.7,2088.1,11.51059994]
[1770546236782,0.67250401,2088.7,2088.2,12.91044126]
[1770546236983,0.23963,2088.6,2087.9,11.51059994]
[1770546237188,0.67255401,2088.3,2087.5,11.51059994]
[1770546237389,0.67255401,2088.3,2087.5,24.4210412]
[1770546237691,0.23967,2088.3,2087.6,11.51059994]
[1770546237892,0.43288401,2088.7,2087.6,11.51059994]
[1770546238088,0.23962,2088.7,2087.8,11.51059994]
[1770546238282,0.67250401,2088.7,2087.8,11.51059994]
[1770546238484,0.67250401,2088.7,2087.3,0.00426018]
[1770546238485,1.01650592,2088.5,2087.3,0.00426018]
[1770546238683,0.23967,2088.2,2087.4,12.91044126]
[1770546238888,1.25617592,2088.2,2087.4,12.91044126]
[1770546240093,0.23961,2088.7,2087.5,11.21878899]
[1770546240294,0.00473472,2088.9,2087.5,11.21878899]
[1770546240495,1.01650592,2089.7,2088.1,11.21878899]
[1770546240790,0.23956,2089.2,2088.3,11.26370045]
[1770546240988,0.23951,2089.7,2088.3,11.26370045]
[1770546241190,0.926683,2089.7,2088.5,11.26370045]
[1770546241493,0.926683,2089.7,2088.0,11.01852045]
[1770546241494,0.23958,2089.0,2088.0,11.01852045]
[1770546242094,1.417043,2089.4,2088.2,11.01852045]
[1770546242298,4.60407903,2089.3,2088.2,11.01852045]
[1770546242496,4.60407903,2089.2,2088.4,11.01852045]
[1770546242694,0.23956,2089.2,2088.4,11.01852045]
[1770546242994,0.23956,2089.2,2088.6,11.21900496]
[1770546243385,0.23956,2089.2,2088.8,11.21900496]
[1770546243591,0.23952,2089.5,2088.8,11.21900496]
[1770546243791,0.23952,2089.5,2088.9,24.12944622]
[1770546243990,0.23952,2089.5,2088.9,11.21900496]
[1770546244194,0.23952,2089.5,2089.1,11.21900496]
[1770546244802,4.59525343,2089.4,2089.1,12.91480101]
[1770546245100,0.23952,2089.5,2089.1,12.91480101]
[1770546245301,4.59630817,2089.4,2089.1,12.91480101]
[1770546245500,0.23952,2089.5,2089.1,12.91480101]
[1770546245795,0.84379096,2089.7,2089.2,11.20086877]
[1770546245999,0.00380786,2089.7,2089.1,12.91480101]
[1770546246792,0.00380786,2089.7,2088.9,10.69483676]
[1770546246995,0.00380786,2089.7,2088.0,0.23969]
[1770546246996,0.23951,2089.6,2089.1,10.69483676]
[1770546247196,0.23952,2089.5,2088.2,10.69483676]
[1770546247397,0.23954,2089.4,2088.2,10.69483676]
[1770546247597,0.23954,2089.4,2088.4,10.69483676]
[1770546247799,0.23954,2089.4,2088.4,10.70059749]
[1770546247997,0.23954,2089.4,2088.6,10.69483676]
[1770546248407,0.23954,2089.4,2088.7,12.91044126]
[1770546248608,0.23954,2089.4,2088.8,10.69483676]
[1770546249302,0.00380786,2089.7,2089.0,10.69483676]
[1770546249699,0.00380786,2089.7,2089.1,12.91044126]
[1770546249901,0.00380786,2089.7,2089.1,23.60527802]
[1770546250293,5.31684303,2090.2,2089.2,12.91044126]
[1770546250498,0.2395,2089.7,2089.0,10.69483676]
[1770546250803,0.2395,2089.7,2089.1,12.91044126]
[1770546251300,0.24449505,2089.7,2089.1,12.91044126]
[1770546251499,5.3926451,2089.5,2088.7,10.69483676]
[1770546253002,5.34263717,2089.3,2088.8,11.90347126]
[1770546253305,5.34263717,2089.3,2088.6,11.90347126]
[1770546254303,0.23955,2089.3,2088.7,10.85629702]
[1770546254704,0.23955,2089.3,2088.8,22.75976828]
[1770546254903,0.23955,2089.3,2088.8,10.85629702]
[1770546255203,0.23955,2089.3,2088.9,11.90347126]
[1770546255407,42.27219642,2089.5,2088.9,11.90347126]
[1770546255606,47.43497971,2089.4,2088.7,10.85629702]
[1770546255905,47.43497971,2089.4,2088.8,11.40930126]
[1770546256099,0.23955,2089.3,2088.8,9.97092101]
[1770546256308,5.40232329,2089.3,2088.8,9.97092101]
[1770546256502,5.40232329,2089.3,2088.8,9.48582101]
[1770546256703,0.23957,2089.2,2088.8,6.39627918]
[1770546256908,0.23957,2089.1,2088.5,10.85629702]
[1770546257206,0.23957,2089.1,2088.5,17.2525762]
[1770546257207,5.56443408,2089.1,2088.5,17.2525762]
[1770546257404,0.23957,2089.1,2088.5,17.2525762]
[1770546257809,4.37433698,2089.0,2088.6,10.85629702]
[1770546258006,4.37433698,2088.9,2088.6,10.85629702]
[1770546258309,0.23957,2089.1,2088.8,10.85629702]
[1770546258511,4.3751295,2089.0,2088.5,6.39627918]
[1770546258701,4.3751295,2088.9,2088.6,10.85629702]
[1770546258906,0.23958,2089.0,2088.5,17.2525762]
[1770546259105,4.37477677,2088.9,2088.5,17.2525762]
[1770546259306,4.37620603,2088.8,2088.5,5.90060918]
[1770546259502,4.37620603,2088.7,2088.5,5.39015918]
[1770546259709,4.37566917,2088.6,2088.4,5.39015991]
[1770546259908,0.2396,2088.8,2088.4,16.24645693]
[1770546260103,4.37577308,2088.7,2088.4,16.24645693]
[1770546260408,42.03266642,2089.1,2088.5,10.36015702]
[1770546260610,10.58933769,2088.9,2088.4,4.63550318]
[1770546260808,0.23962,2088.7,2087.1,10.85629702]
[1770546261008,0.23962,2088.7,2088.1,10.85629702]
[1770546261415,10.82895769,2088.7,2088.2,4.63550318]
[1770546261610,10.82895769,2088.7,2088.2,4.63960527]
[1770546261918,0.23962,2088.7,2088.2,15.49590229]
[1770546262310,10.82895769,2088.7,2088.2,4.63960527]
[1770546262513,52.86163411,2088.6,2088.2,0.00410209]
[1770546262710,10.58933769,2088.5,2088.2,0.00410209]
[1770546262913,0.23963,2088.6,2088.3,4.11310318]
[1770546263207,0.23963,2088.6,2088.3,14.9694002]
[1770546263408,0.23963,2088.6,2088.3,13.9393402]
[1770546263717,0.23964,2088.5,2087.8,10.85629702]
[1770546264220,0.23967,2088.2,2087.9,1.32134527]
[1770546264716,0.24522372,2088.2,2087.9,0.00346014]
[1770546266516,10.83456141,2088.2,2087.9,0.00346014]
[1770546266813,10.83456141,2088.2,2087.7,0.65221527]
[1770546266814,0.23969,2088.0,2087.7,0.65221527]
[1770546267021,0.23969,2088.0,2087.4,10.85629702]
[1770546267316,0.23964,2088.5,2087.6,10.85629702]
[1770546267716,0.23964,2088.5,2087.8,10.85629702]
[1770546268220,0.23964,2088.5,2088.0,10.85629702]
[1770546268418,0.24370316,2088.5,2088.0,10.86029968]
[1770546268619,10.83304085,2088.5,2088.1,0.64666155]
[1770546268918,0.24370316,2088.5,2088.1,11.50295857]
[1770546269119,52.62200411,2088.8,2088.1,11.50295857]
[1770546269516,42.03266642,2088.8,2088.1,11.50295857]
[1770546270120,42.03872525,2088.8,2088.1,11.50295857]
[1770546270322,0.00605883,2088.8,2088.1,11.50295857]
[1770546270914,10.59539652,2088.8,2088.1,0.12335155]
[1770546271114,52.62806294,2088.8,2088.0,0.00400266]
[1770546271309,10.58933769,2088.7,2088.0,0.00400266]
[1770546271911,0.23965,2088.4,2088.0,0.00400266]
[1770546272316,14.84327661,2088.3,2088.0,0.00400266]
[1770546272522,15.08295661,2088.2,2087.5,10.37295386]
[1770546272819,4.25393892,2088.1,2087.5,10.37295386]
[1770546273016,42.03266642,2088.4,2087.5,10.37295386]
[1770546273222,52.86162411,2088.7,2087.5,10.37295386]
[1770546273421,10.82898769,2088.4,2087.5,10.37854158]
[1770546273614,0.23965,2088.4,2087.5,10.37854158]
[1770546274220,10.59539652,2088.8,2087.5,10.37854158]
[1770546274823,0.00605883,2088.8,2087.5,10.37854158]
[1770546275025,0.23954,2089.4,2087.8,10.85629702]
[1770546275426,42.03266642,2089.7,2087.9,6.36412007]
[1770546275626,10.58933769,2089.7,2088.0,10.85629702]
[1770546275926,0.24492308,2089.7,2088.0,10.85629702]
[1770546276148,10.82465267,2089.7,2088.0,10.85629702]
[1770546276327,10.57972959,2089.6,2088.0,10.85629702]
[1770546276524,10.81928959,2089.2,2088.0,10.85629702]
[1770546276733,10.57972959,2088.9,2088.0,10.85629702]
[1770546277226,52.61239601,2089.3,2088.0,10.85629702]
[1770546277527,52.85194601,2089.3,2088.0,10.85629702]
[1770546277728,10.57972959,2089.2,2088.0,10.85629702]
[1770546278420,10.57972959,2089.0,2088.0,10.85629702]
[1770546278820,10.81930959,2089.0,2088.0,10.85629702]
[1770546279529,10.57972959,2088.8,2088.0,10.85629702]
[1770546280426,10.57972959,2088.8,2087.8,10.87211494]
[1770546280427,0.23963,2088.6,2087.8,10.87211494]
[1770546280631,10.81935959,2088.6,2087.8,10.87211494]
[1770546281930,42.03266642,2088.7,2087.8,10.87211494]
[1770546282432,42.03266642,2088.8,2087.8,10.87211494]
[1770546282731,42.03266642,2088.9,2087.8,10.87211494]
[1770546283525,10.57972959,2088.8,2087.8,10.87211494]
[1770546283728,10.57972959,2088.7,2087.8,10.87211494]
[1770546284124,42.27226642,2088.8,2087.8,10.87211494]
[1770546284527,52.85199601,2088.8,2087.8,10.87211494]
[1770546284731,42.03266642,2088.9,2087.8,10.87211494]
[1770546284930,52.61239601,2089.0,2087.8,10.87211494]
[1770546285130,4.18147531,2088.9,2087.8,10.87211494]
[1770546285427,4.18147531,2088.8,2087.8,10.87211494]
[1770546285623,52.61239601,2089.1,2087.8,10.87211494]
[1770546285827,46.45477244,2089.0,2087.8,10.87211494]
[1770546286030,4.18252602,2088.9,2087.8,10.87211494]
[1770546286231,4.18252602,2088.8,2087.8,10.87211494]
[1770546286530,4.18252602,2088.7,2087.8,10.87211494]
[1770546286730,10.57972959,2088.9,2087.8,10.87211494]
[1770546287032,4.1840132,2088.8,2087.8,10.87211494]
[1770546287332,4.1840132,2088.7,2087.8,10.87211494]
[1770546287534,10.57972959,2088.9,2087.8,10.87211494]
[1770546287735,4.18389825,2088.8,2087.8,10.87211494]
[1770546288035,4.18389825,2088.7,2087.8,10.87211494]
[1770546288232,10.57972959,2088.8,2087.8,10.87211494]
[1770546288427,10.57972959,2088.6,2087.8,10.87211494]
[1770546288634,4.18420434,2088.5,2087.8,10.87211494]
[1770546288833,10.57972959,2088.6,2087.8,10.87211494]
[1770546289137,4.18367777,2088.5,2087.8,10.87211494]
[1770546289436,10.57972959,2088.6,2087.8,10.87211494]
[1770546289636,4.18426857,2088.5,2087.8,10.87211494]
[1770546289837,10.57972959,2088.6,2087.8,10.87211494]
[1770546290038,4.18429131,2088.5,2087.8,10.87211494]
[1770546290232,10.57972959,2088.6,2087.8,10.87211494]
[1770546290437,4.1849679,2088.5,2087.8,10.87211494]
[1770546290635,0.23962,2088.7,2087.8,10.87211494]
[1770546290830,52.61239601,2089.1,2087.8,10.87211494]
[1770546291037,10.57972959,2088.9,2087.8,10.87211494]
[1770546291237,14.76575107,2088.8,2087.8,10.87211494]
[1770546291442,14.76575107,2088.7,2087.8,10.87211494]
[1770546291639,4.18602148,2088.6,2087.8,10.87211494]
[1770546292043,0.2396,2088.9,2087.8,10.87211494]
[1770546292342,4.18550344,2088.8,2087.8,10.87211494]
[1770546292530,4.18550344,2088.7,2087.8,10.87211494]
[1770546292744,4.18550344,2088.6,2087.8,10.87211494]
[1770546292936,10.81932959,2088.9,2087.8,10.87211494]
[1770546293139,4.18516189,2088.8,2087.8,10.87211494]
[1770546293342,4.18516189,2088.7,2087.8,10.87211494]
[1770546293642,4.18516189,2088.6,2087.8,10.87211494]
[1770546293844,10.81932959,2088.9,2087.8,10.87211494]
[1770546294141,4.17854344,2088.8,2087.8,10.87211494]
[1770546294341,4.17854344,2088.7,2087.8,10.87211494]
[1770546294542,10.81932959,2088.9,2087.8,10.87211494]
[1770546294736,4.17884422,2088.8,2087.8,10.87211494]
[1770546294939,4.17884422,2088.7,2087.8,10.87211494]
[1770546295142,10.81932959,2088.9,2087.8,10.87211494]
[1770546295339,4.17968215,2088.8,2087.8,10.87211494]
[1770546295640,4.17968215,2088.7,2087.8,10.87211494]
[1770546295841,10.81932959,2088.9,2087.8,10.87211494]
[1770546296143,4.17970569,2088.8,2087.8,10.87211494]
[1770546296334,4.17970569,2088.7,2087.8,10.87211494]
[1770546296532,23.54219258,2089.6,2087.9,1.79030181]
[1770546296739,11.7115021,2089.4,2088.0,24.74]
[1770546296934,4.18220324,2089.3,2088.0,24.74]
[1770546297134,11.7115021,2089.4,2088.0,30.44900993]
[1770546297331,4.1818415,2089.3,2088.0,24.74]
[1770546297530,11.7115021,2089.4,2088.4,2.86331278]
[1770546297732,11.71692518,2089.7,2088.7,2.86331278]
[1770546298537,11.71692518,2089.7,2088.8,0.28765327]
[1770546298733,11.57309854,2089.7,2089.0,0.28765327]
[1770546298938,11.57309854,2089.7,2089.0,0.29311488]
[1770546299243,11.56767546,2089.9,2089.0,0.29311488]
[1770546300138,11.57114256,2089.9,2089.0,0.29311488]
[1770546301142,11.48228927,2089.4,2088.5,2.86331278]
[1770546301333,11.48228927,2089.4,2088.3,0.45842567]
[1770546302247,11.48228927,2089.4,2088.3,0.46417045]
[1770546302849,11.49681692,2089.8,2088.8,0.42937035]
[1770546303146,11.49681692,2089.8,2088.8,2.86331278]
[1770546303351,11.49681692,2089.8,2088.9,0.42937035]
[1770546303646,0.0034671,2089.9,2088.9,0.42937035]
[1770546303845,11.50028402,2089.9,2088.6,2.86331278]
[1770546304044,11.50028402,2089.9,2088.6,3.29268313]
[1770546304354,11.50028402,2089.9,2088.7,0.42937035]
[1770546304641,11.50028402,2089.9,2088.8,0.37935099]
[1770546304843,11.50028402,2089.9,2088.9,0.37935099]
[1770546305242,11.50028402,2089.9,2088.8,0.37935099]
[1770546305440,11.73976402,2089.9,2088.8,0.37935099]
[1770546306547,11.73976402,2089.9,2088.6,2.86331278]
[1770546306747,11.73976402,2089.9,2088.5,0.4246642]
[1770546307652,11.73976402,2089.9,2088.6,0.4246642]
[1770546308253,11.73976402,2089.9,2088.5,0.4246642]
[1770546310352,11.77598517,2089.6,2088.3,3.25141067]
[1770546310651,11.61111845,2089.4,2088.3,0.38809789]
[1770546311347,11.61111845,2089.4,2088.3,0.00574478]
[1770546311548,11.61111845,2089.0,2088.3,0.0003217]
[1770546312759,11.61111845,2089.0,2087.8,0.23306656]
[1770546313260,11.61111845,2089.0,2087.6,3.14591078]
[1770546313658,11.58650076,2088.8,2087.6,0.00355854]
[1770546313865,11.58650076,2088.4,2087.6,0.00355854]
[1770546314066,11.59006766,2088.4,2087.6,0.00355854]
[1770546315167,11.59006766,2088.4,2087.0,2.86331278]
[1770546315168,11.57527432,2088.2,2087.0,2.86331278]
[1770546315363,11.57527432,2088.2,2086.9,3.16416137]
[1770546315865,13.36557613,2088.2,2086.9,0.30084859]
[1770546316055,13.36557613,2088.2,2086.8,2.86331278]
[1770546316258,13.36557613,2088.2,2086.8,0.0031983]
[1770546316259,11.57527432,2088.0,2086.8,0.0031983]
[1770546316657,11.85734441,2087.8,2086.8,0.0031983]
[1770546319262,11.61762441,2087.8,2086.8,0.21937931]
[1770546319662,11.85728811,2088.2,2086.8,0.21937931]
[1770546319860,11.61760811,2088.2,2086.9,0.21618101]
[1770546320470,11.61760811,2088.2,2087.1,0.21618101]
[1770546321665,11.65084638,2088.4,2087.1,0.23979]
[1770546321864,11.65084638,2088.4,2087.4,0.15683828]
[1770546321865,0.0035669,2088.4,2087.4,0.15683828]
[1770546322369,11.64727948,2089.2,2087.8,0.15683828]
[1770546322667,11.64727948,2089.2,2088.1,0.46397163]
[1770546322870,11.6135528,2089.7,2088.2,0.22429163]
[1770546323463,11.61968595,2089.7,2088.2,0.22429163]
[1770546323864,11.61968595,2089.7,2088.4,0.22429163]
[1770546324065,11.61968595,2089.7,2088.4,0.22970719]